Workbook

Sheet Online Eğitimler

Sheet Toplu Netten Brüte
A1: TC | B1: Adı ve Soyadı | C1: Net Ücret
A3: 1234567890 | B3: ali01 | C3: 25000
A4: 2345678901 | B4: ali02 | C4: 26000
A5: 3456789912 | B5: ali03 | C5: 27000

Sheet Toplu Brütten Nete
A1: TC | B1: Adı ve Soyadı | C1: Brüt Ücret
A3: 1234567890 | B3: ali01 | C3: 12000
A4: 2345678901 | B4: ali02 | C4: 13333
A5: 3456789912 | B5: ali03 | C5: 15000

Sheet Net>Brüt
A1: 2023 | B1: SGK MATRAH | C1: SGK/İŞSİZLİK İŞÇİ (%14+%1) | D1: VERGİ MATRAHI | E1: KÜMÜLATİF GV MATRAH | F1: HESAPLANAN GELİR VERGİSİ | G1: ASGARİ ÜCRET KÜMÜLATİF MATRAH | H1: ASGARİ ÜCRETİN VERGİSİ | I1: İSTİSNA MATRAH | J1: KESİLECEK GELİR VERGİSİ | K1: DAMGA VERGİSİ | L1: NET ÜCRET | M1: SGK İŞVEREN | N1: İŞSİZLİK İŞVEREN | O1: İŞVEREN TOPLAM MALİYET | Q1: Hedef Net Ücret | R1: 100000
A2: ocak | B2: 136520.666 | C2: =IF(B2<150015,B2*0.15,150015*0.15) -> 20478.0999 | D2: =Tablo234[[#This Row],[SGK MATRAH]]-Tablo234[[#This Row],[SGK/İŞSİZLİK İŞÇİ (%14+%1)]] -> 116042.5661 | E2: =D2 -> 116042.5661 | F2: =gelir_vergisi(Tablo234[[#This Row],[VERGİ MATRAHI]],Tablo234[[#This Row],[KÜMÜLATİF GV MATRAH]]) -> 17708.51322 | G2: 17002.12 | H2: 2550.32 | I2: 17002.12 | J2: =Tablo234[[#This Row],[HESAPLANAN GELİR VERGİSİ]]-Tablo234[[#This Row],[ASGARİ ÜCRETİN VERGİSİ]] -> 15158.19322 | K2: =(Tablo234[[#This Row],[SGK MATRAH]]-20002.5)*0.00759 -> 884.3728798 | L2: =Tablo234[[#This Row],[SGK MATRAH]]-Tablo234[[#This Row],[SGK/İŞSİZLİK İŞÇİ (%14+%1)]]-Tablo234[[#This Row],[KESİLECEK GELİR VERGİSİ]]-Tablo234[[#This Row],[DAMGA VERGİSİ]] -> 99999.99999 | M2: =IF(B2<150015,B2*0.155,150015*0.155) -> 21160.70323 | N2: =IF(B2<150015,B2*0.02,150015*0.02) -> 2730.41332 | O2: =B2+M2+N2 -> 160411.7825
A3: şubat | B3: 145732.3924 | C3: 21859.85887 | D3: =Tablo234[[#This Row],[SGK MATRAH]]-Tablo234[[#This Row],[SGK/İŞSİZLİK İŞÇİ (%14+%1)]] -> 123872.5336 | E3: =D3+E2 -> 239915.0997 | F3: =gelir_vergisi(Tablo234[[#This Row],[VERGİ MATRAHI]],Tablo234[[#This Row],[KÜMÜLATİF GV MATRAH]]) -> 25468.5637 | G3: 34004.24 | H3: 2550.32 | I3: 34004.24 | J3: =Tablo234[[#This Row],[HESAPLANAN GELİR VERGİSİ]]-Tablo234[[#This Row],[ASGARİ ÜCRETİN VERGİSİ]] -> 22918.2437 | K3: =(Tablo234[[#This Row],[SGK MATRAH]]-20002.5)*0.00759 -> 954.2898836 | L3: =Tablo234[[#This Row],[SGK MATRAH]]-Tablo234[[#This Row],[SGK/İŞSİZLİK İŞÇİ (%14+%1)]]-Tablo234[[#This Row],[KESİLECEK GELİR VERGİSİ]]-Tablo234[[#This Row],[DAMGA VERGİSİ]] -> 99999.99999 | M3: 22588.52083 | N3: 2914.647849 | O3: 171235.5611
A4: mart | B4: 157423.767 | C4: 22502.25 | D4: =Tablo234[[#This Row],[SGK MATRAH]]-Tablo234[[#This Row],[SGK/İŞSİZLİK İŞÇİ (%14+%1)]] -> 134921.517 | E4: 374836.6167 | F4: =gelir_vergisi(Tablo234[[#This Row],[VERGİ MATRAHI]],Tablo234[[#This Row],[KÜMÜLATİF GV MATRAH]]) -> 36428.80959 | G4: 51006.36 | H4: 2550.32 | I4: 51006.36 | J4: =Tablo234[[#This Row],[HESAPLANAN GELİR VERGİSİ]]-Tablo234[[#This Row],[ASGARİ ÜCRETİN VERGİSİ]] -> 33878.48959 | K4: =(Tablo234[[#This Row],[SGK MATRAH]]-20002.5)*0.00759 -> 1043.027417 | L4: =Tablo234[[#This Row],[SGK MATRAH]]-Tablo234[[#This Row],[SGK/İŞSİZLİK İŞÇİ (%14+%1)]]-Tablo234[[#This Row],[KESİLECEK GELİR VERGİSİ]]-Tablo234[[#This Row],[DAMGA VERGİSİ]] -> 100000 | M4: 23252.325 | N4: 3000.3 | O4: 183676.392
A5: nisan | B5: 157423.767 | C5: 22502.25 | D5: =Tablo234[[#This Row],[SGK MATRAH]]-Tablo234[[#This Row],[SGK/İŞSİZLİK İŞÇİ (%14+%1)]] -> 134921.517 | E5: 509758.1337 | F5: =gelir_vergisi(Tablo234[[#This Row],[VERGİ MATRAHI]],Tablo234[[#This Row],[KÜMÜLATİF GV MATRAH]]) -> 36428.80959 | G5: 68008.49 | H5: 2550.32 | I5: 68008.49 | J5: =Tablo234[[#This Row],[HESAPLANAN GELİR VERGİSİ]]-Tablo234[[#This Row],[ASGARİ ÜCRETİN VERGİSİ]] -> 33878.48959 | K5: =(Tablo234[[#This Row],[SGK MATRAH]]-20002.5)*0.00759 -> 1043.027417 | L5: =Tablo234[[#This Row],[SGK MATRAH]]-Tablo234[[#This Row],[SGK/İŞSİZLİK İŞÇİ (%14+%1)]]-Tablo234[[#This Row],[KESİLECEK GELİR VERGİSİ]]-Tablo234[[#This Row],[DAMGA VERGİSİ]] -> 100000 | M5: 23252.325 | N5: 3000.3 | O5: 183676.392
A6: mayıs | B6: 157423.767 | C6: 22502.25 | D6: =Tablo234[[#This Row],[SGK MATRAH]]-Tablo234[[#This Row],[SGK/İŞSİZLİK İŞÇİ (%14+%1)]] -> 134921.517 | E6: 644679.6507 | F6: =gelir_vergisi(Tablo234[[#This Row],[VERGİ MATRAHI]],Tablo234[[#This Row],[KÜMÜLATİF GV MATRAH]]) -> 36428.80959 | G6: 85010.62 | H6: 2550.32 | I6: 85010.62 | J6: =Tablo234[[#This Row],[HESAPLANAN GELİR VERGİSİ]]-Tablo234[[#This Row],[ASGARİ ÜCRETİN VERGİSİ]] -> 33878.48959 | K6: =(Tablo234[[#This Row],[SGK MATRAH]]-20002.5)*0.00759 -> 1043.027417 | L6: =Tablo234[[#This Row],[SGK MATRAH]]-Tablo234[[#This Row],[SGK/İŞSİZLİK İŞÇİ (%14+%1)]]-Tablo234[[#This Row],[KESİLECEK GELİR VERGİSİ]]-Tablo234[[#This Row],[DAMGA VERGİSİ]] -> 100000 | M6: 23252.325 | N6: 3000.3 | O6: 183676.392
A7: haziran | B7: 157423.767 | C7: 22502.25 | D7: =Tablo234[[#This Row],[SGK MATRAH]]-Tablo234[[#This Row],[SGK/İŞSİZLİK İŞÇİ (%14+%1)]] -> 134921.517 | E7: 779601.1677 | F7: =gelir_vergisi(Tablo234[[#This Row],[VERGİ MATRAHI]],Tablo234[[#This Row],[KÜMÜLATİF GV MATRAH]]) -> 36428.80959 | G7: 102012.75 | H7: 2550.32 | I7: 102012.75 | J7: =Tablo234[[#This Row],[HESAPLANAN GELİR VERGİSİ]]-Tablo234[[#This Row],[ASGARİ ÜCRETİN VERGİSİ]] -> 33878.48959 | K7: =(Tablo234[[#This Row],[SGK MATRAH]]-20002.5)*0.00759 -> 1043.027417 | L7: =Tablo234[[#This Row],[SGK MATRAH]]-Tablo234[[#This Row],[SGK/İŞSİZLİK İŞÇİ (%14+%1)]]-Tablo234[[#This Row],[KESİLECEK GELİR VERGİSİ]]-Tablo234[[#This Row],[DAMGA VERGİSİ]] -> 100000 | M7: 23252.325 | N7: 3000.3 | O7: 183676.392
A8: temmuz | B8: 162266.5851 | C8: 22502.25 | D8: =Tablo234[[#This Row],[SGK MATRAH]]-Tablo234[[#This Row],[SGK/İŞSİZLİK İŞÇİ (%14+%1)]] -> 139764.3351 | E8: 919365.5029 | F8: =gelir_vergisi(Tablo234[[#This Row],[VERGİ MATRAHI]],Tablo234[[#This Row],[KÜMÜLATİF GV MATRAH]]) -> 41685.61071 | G8: 119014.88 | H8: 3001.06 | I8: 119014.88 | J8: =Tablo234[[#This Row],[HESAPLANAN GELİR VERGİSİ]]-Tablo234[[#This Row],[ASGARİ ÜCRETİN VERGİSİ]] -> 38684.55071 | K8: =(Tablo234[[#This Row],[SGK MATRAH]]-20002.5)*0.00759 -> 1079.784406 | L8: =Tablo234[[#This Row],[SGK MATRAH]]-Tablo234[[#This Row],[SGK/İŞSİZLİK İŞÇİ (%14+%1)]]-Tablo234[[#This Row],[KESİLECEK GELİR VERGİSİ]]-Tablo234[[#This Row],[DAMGA VERGİSİ]] -> 100000 | M8: 23252.325 | N8: 3000.3 | O8: 188519.2101
A9: ağustos | B9: 172902.3731 | C9: 22502.25 | D9: =Tablo234[[#This Row],[SGK MATRAH]]-Tablo234[[#This Row],[SGK/İŞSİZLİK İŞÇİ (%14+%1)]] -> 150400.1231 | E9: 1069765.626 | F9: =gelir_vergisi(Tablo234[[#This Row],[VERGİ MATRAHI]],Tablo234[[#This Row],[KÜMÜLATİF GV MATRAH]]) -> 52640.04308 | G9: 136017 | H9: 3400.43 | I9: 136017 | J9: =Tablo234[[#This Row],[HESAPLANAN GELİR VERGİSİ]]-Tablo234[[#This Row],[ASGARİ ÜCRETİN VERGİSİ]] -> 49239.61308 | K9: =(Tablo234[[#This Row],[SGK MATRAH]]-20002.5)*0.00759 -> 1160.510037 | L9: =Tablo234[[#This Row],[SGK MATRAH]]-Tablo234[[#This Row],[SGK/İŞSİZLİK İŞÇİ (%14+%1)]]-Tablo234[[#This Row],[KESİLECEK GELİR VERGİSİ]]-Tablo234[[#This Row],[DAMGA VERGİSİ]] -> 100000 | M9: 23252.325 | N9: 3000.3 | O9: 199154.9981
A10: eylül | B10: 172902.3731 | C10: 22502.25 | D10: =Tablo234[[#This Row],[SGK MATRAH]]-Tablo234[[#This Row],[SGK/İŞSİZLİK İŞÇİ (%14+%1)]] -> 150400.1231 | E10: 1220165.749 | F10: =gelir_vergisi(Tablo234[[#This Row],[VERGİ MATRAHI]],Tablo234[[#This Row],[KÜMÜLATİF GV MATRAH]]) -> 52640.04308 | G10: 153019.12 | H10: 3400.43 | I10: 153019.12 | J10: =Tablo234[[#This Row],[HESAPLANAN GELİR VERGİSİ]]-Tablo234[[#This Row],[ASGARİ ÜCRETİN VERGİSİ]] -> 49239.61308 | K10: =(Tablo234[[#This Row],[SGK MATRAH]]-20002.5)*0.00759 -> 1160.510037 | L10: =Tablo234[[#This Row],[SGK MATRAH]]-Tablo234[[#This Row],[SGK/İŞSİZLİK İŞÇİ (%14+%1)]]-Tablo234[[#This Row],[KESİLECEK GELİR VERGİSİ]]-Tablo234[[#This Row],[DAMGA VERGİSİ]] -> 100000 | M10: 23252.325 | N10: 3000.3 | O10: 199154.9981
A11: ekim | B11: 172902.3731 | C11: 22502.25 | D11: =Tablo234[[#This Row],[SGK MATRAH]]-Tablo234[[#This Row],[SGK/İŞSİZLİK İŞÇİ (%14+%1)]] -> 150400.1231 | E11: 1370565.872 | F11: =gelir_vergisi(Tablo234[[#This Row],[VERGİ MATRAHI]],Tablo234[[#This Row],[KÜMÜLATİF GV MATRAH]]) -> 52640.04308 | G11: 170021.25 | H11: 3400.43 | I11: 170021.25 | J11: =Tablo234[[#This Row],[HESAPLANAN GELİR VERGİSİ]]-Tablo234[[#This Row],[ASGARİ ÜCRETİN VERGİSİ]] -> 49239.61308 | K11: =(Tablo234[[#This Row],[SGK MATRAH]]-20002.5)*0.00759 -> 1160.510037 | L11: =Tablo234[[#This Row],[SGK MATRAH]]-Tablo234[[#This Row],[SGK/İŞSİZLİK İŞÇİ (%14+%1)]]-Tablo234[[#This Row],[KESİLECEK GELİR VERGİSİ]]-Tablo234[[#This Row],[DAMGA VERGİSİ]] -> 100000 | M11: 23252.325 | N11: 3000.3 | O11: 199154.9981
A12: kasım | B12: 172902.3731 | C12: 22502.25 | D12: =Tablo234[[#This Row],[SGK MATRAH]]-Tablo234[[#This Row],[SGK/İŞSİZLİK İŞÇİ (%14+%1)]] -> 150400.1231 | E12: 1520965.995 | F12: =gelir_vergisi(Tablo234[[#This Row],[VERGİ MATRAHI]],Tablo234[[#This Row],[KÜMÜLATİF GV MATRAH]]) -> 52640.04308 | G12: 187023.38 | H12: 3400.43 | I12: 187023.38 | J12: =Tablo234[[#This Row],[HESAPLANAN GELİR VERGİSİ]]-Tablo234[[#This Row],[ASGARİ ÜCRETİN VERGİSİ]] -> 49239.61308 | K12: =(Tablo234[[#This Row],[SGK MATRAH]]-20002.5)*0.00759 -> 1160.510037 | L12: =Tablo234[[#This Row],[SGK MATRAH]]-Tablo234[[#This Row],[SGK/İŞSİZLİK İŞÇİ (%14+%1)]]-Tablo234[[#This Row],[KESİLECEK GELİR VERGİSİ]]-Tablo234[[#This Row],[DAMGA VERGİSİ]] -> 100000 | M12: 23252.325 | N12: 3000.3 | O12: 199154.9981
A13: aralık | B13: 172902.3731 | C13: 22502.25 | D13: =Tablo234[[#This Row],[SGK MATRAH]]-Tablo234[[#This Row],[SGK/İŞSİZLİK İŞÇİ (%14+%1)]] -> 150400.1231 | E13: 1671366.119 | F13: =gelir_vergisi(Tablo234[[#This Row],[VERGİ MATRAHI]],Tablo234[[#This Row],[KÜMÜLATİF GV MATRAH]]) -> 52640.04308 | G13: 204025.5 | H13: 3400.43 | I13: 204025.5 | J13: =Tablo234[[#This Row],[HESAPLANAN GELİR VERGİSİ]]-Tablo234[[#This Row],[ASGARİ ÜCRETİN VERGİSİ]] -> 49239.61308 | K13: =(Tablo234[[#This Row],[SGK MATRAH]]-20002.5)*0.00759 -> 1160.510037 | L13: =Tablo234[[#This Row],[SGK MATRAH]]-Tablo234[[#This Row],[SGK/İŞSİZLİK İŞÇİ (%14+%1)]]-Tablo234[[#This Row],[KESİLECEK GELİR VERGİSİ]]-Tablo234[[#This Row],[DAMGA VERGİSİ]] -> 100000 | M13: 23252.325 | N13: 3000.3 | O13: 199154.9981 | Q13: www.vizyonkurumsal.com.tr
A14: TOPLAM | B14: =SUBTOTAL(109,Tablo234[SGK MATRAH]) -> 1938726.577 | C14: =SUBTOTAL(109,Tablo234[SGK/İŞSİZLİK İŞÇİ (%14+%1)]) -> 267360.4588 | D14: =SUBTOTAL(109,Tablo234[VERGİ MATRAHI]) -> 1671366.119 | E14: =SUBTOTAL(109,Tablo234[KÜMÜLATİF GV MATRAH]) -> 10437028.1 | F14: =SUBTOTAL(109,Tablo234[HESAPLANAN GELİR VERGİSİ]) -> 493778.1414 | G14: =SUBTOTAL(109,Tablo234[ASGARİ ÜCRET KÜMÜLATİF MATRAH]) -> 1326165.71 | H14: =SUBTOTAL(109,Tablo234[ASGARİ ÜCRETİN VERGİSİ]) -> 35305.13 | I14: =SUBTOTAL(109,Tablo234[İSTİSNA MATRAH]) -> 1326165.71 | J14: =SUBTOTAL(109,Tablo234[KESİLECEK GELİR VERGİSİ]) -> 458473.0114 | K14: =SUBTOTAL(109,Tablo234[DAMGA VERGİSİ]) -> 12893.10702 | L14: =SUBTOTAL(109,Tablo234[NET ÜCRET]) -> 1200000 | M14: =SUBTOTAL(109,Tablo234[SGK İŞVEREN]) -> 276272.4741 | N14: =SUBTOTAL(109,Tablo234[[İŞSİZLİK İŞVEREN ]]) -> 35648.06117 | O14: =SUBTOTAL(109,Tablo234[İŞVEREN TOPLAM MALİYET]) -> 2250647.113
A15: ort aylık netler | B15: =AVERAGE(Tablo234[SGK MATRAH]) -> 161560.5481 | C15: =AVERAGE(Tablo234[SGK/İŞSİZLİK İŞÇİ (%14+%1)]) -> 22280.03823 | D15: =AVERAGE(Tablo234[VERGİ MATRAHI]) -> 139280.5099 | E15: =AVERAGE(Tablo234[KÜMÜLATİF GV MATRAH]) -> 869752.3416 | F15: =AVERAGE(Tablo234[HESAPLANAN GELİR VERGİSİ]) -> 41148.17845 | G15: =AVERAGE(Tablo234[ASGARİ ÜCRET KÜMÜLATİF MATRAH]) -> 110513.8092 | H15: =AVERAGE(Tablo234[ASGARİ ÜCRETİN VERGİSİ]) -> 2942.094167 | I15: =AVERAGE(Tablo234[İSTİSNA MATRAH]) -> 110513.8092 | J15: =AVERAGE(Tablo234[KESİLECEK GELİR VERGİSİ]) -> 38206.08428 | K15: =AVERAGE(Tablo234[DAMGA VERGİSİ]) -> 1074.425585 | L15: =AVERAGE(Tablo234[NET ÜCRET]) -> 100000 | M15: =AVERAGE(Tablo234[SGK İŞVEREN]) -> 23022.70617 | N15: =AVERAGE(Tablo234[[İŞSİZLİK İŞVEREN ]]) -> 2970.671764 | O15: =AVERAGE(Tablo234[İŞVEREN TOPLAM MALİYET]) -> 187553.926
B16: 20002
A17: brüt ücret aylık ortalama maliyet | B17: ='brüt>net'!B16 -> 20200 | C17: ='brüt>net'!C16 -> 3030 | D17: ='brüt>net'!D16 -> 17170 | E17: ='brüt>net'!E16 -> 111605 | F17: ='brüt>net'!F16 -> 2975.666667 | G17: ='brüt>net'!G16 -> 74115.135 | H17: ='brüt>net'!H16 -> 1988.8 | I17: ='brüt>net'!I16 -> 74115.135 | J17: ='brüt>net'!J16 -> 986.8666667 | K17: ='brüt>net'!K16 -> 51.501945 | L17: ='brüt>net'!L16 -> 16131.63139 | M17: ='brüt>net'!M16 -> 3131 | N17: ='brüt>net'!N16 -> 404 | O17: ='brüt>net'!O16 -> 23735 | Q17: =(O17-O15)*12 -> -1965827.113 | R17: işveren açısından yıllık brüt çalıştırma avantajı
B19: =B16*7.5 -> 150015 | F19: 13414.5 | G19: =F19*7.5 -> 100608.75

Sheet brüt>net
A1: 2023 | B1: SGK MATRAH | C1: SGK ve İşsizlik İşçi Payı | D1: MATRAH | E1: KÜMÜLATİF GV MATRAH | F1: HESAPLANAN GELİR VERGİSİ | G1: ASGARİ ÜCRET KÜMÜLATİF MATRAH | H1: ASGARİ ÜCRETİN VERGİSİ | I1: İSTİSNA MATRAH | J1: KESİLECEK GELİR VERGİSİ | K1: DAMGA VERGİSİ | L1: NET ÜCRET | M1: SGK İŞVEREN | N1: İŞVEREN İŞSİZLİK | O1: İŞVEREN TOPLAM MALİYET
A2: ocak | B2: 20200 | C2: =IF(B2<100608.75,B2*0.15,100608.75*0.15) -> 3030 | D2: =Tablo2345[[#This Row],[SGK MATRAH]]-Tablo2345[[#This Row],[SGK ve İşsizlik İşçi Payı]] -> 17170 | E2: =D2 -> 17170 | F2: =gelir_vergisi(Tablo2345[[#This Row],[MATRAH]],Tablo2345[[#This Row],[KÜMÜLATİF GV MATRAH]]) -> 2575.5 | G2: 11402.32 | H2: 1710.34875 | I2: =Tablo2345[[#This Row],[ASGARİ ÜCRET KÜMÜLATİF MATRAH]] -> 11402.32 | J2: =Tablo2345[[#This Row],[HESAPLANAN GELİR VERGİSİ]]-Tablo2345[[#This Row],[ASGARİ ÜCRETİN VERGİSİ]] -> 865.15125 | K2: =(Tablo2345[[#This Row],[SGK MATRAH]]-13414.5)*0.00759 -> 51.501945 | L2: =Tablo2345[[#This Row],[SGK MATRAH]]-Tablo2345[[#This Row],[SGK ve İşsizlik İşçi Payı]]-Tablo2345[[#This Row],[KESİLECEK GELİR VERGİSİ]]-Tablo2345[[#This Row],[DAMGA VERGİSİ]] -> 16253.3468 | M2: =IF(B2<100608.75,B2*0.155,100608.75*0.155) -> 3131 | N2: =IF(B2<100608.75,B2*0.02,100608.75*0.02) -> 404 | O2: =B2+M2+N2 -> 23735
A3: şubat | B3: 20200 | C3: 3030 | D3: =Tablo2345[[#This Row],[SGK MATRAH]]-Tablo2345[[#This Row],[SGK ve İşsizlik İşçi Payı]] -> 17170 | E3: =D3+E2 -> 34340 | F3: =gelir_vergisi(Tablo2345[[#This Row],[MATRAH]],Tablo2345[[#This Row],[KÜMÜLATİF GV MATRAH]]) -> 2575.5 | G3: =11402.33+G2 -> 22804.65 | H3: 1710.34875 | I3: =Tablo2345[[#This Row],[ASGARİ ÜCRET KÜMÜLATİF MATRAH]] -> 22804.65 | J3: =Tablo2345[[#This Row],[HESAPLANAN GELİR VERGİSİ]]-Tablo2345[[#This Row],[ASGARİ ÜCRETİN VERGİSİ]] -> 865.15125 | K3: =(Tablo2345[[#This Row],[SGK MATRAH]]-13414.5)*0.00759 -> 51.501945 | L3: =Tablo2345[[#This Row],[SGK MATRAH]]-Tablo2345[[#This Row],[SGK ve İşsizlik İşçi Payı]]-Tablo2345[[#This Row],[KESİLECEK GELİR VERGİSİ]]-Tablo2345[[#This Row],[DAMGA VERGİSİ]] -> 16253.3468 | M3: 3131 | N3: 404 | O3: 23735
A4: mart | B4: 20200 | C4: 3030 | D4: =Tablo2345[[#This Row],[SGK MATRAH]]-Tablo2345[[#This Row],[SGK ve İşsizlik İşçi Payı]] -> 17170 | E4: 51510 | F4: =gelir_vergisi(Tablo2345[[#This Row],[MATRAH]],Tablo2345[[#This Row],[KÜMÜLATİF GV MATRAH]]) -> 2575.5 | G4: =11402.33+G3 -> 34206.98 | H4: 1710.34875 | I4: =Tablo2345[[#This Row],[ASGARİ ÜCRET KÜMÜLATİF MATRAH]] -> 34206.98 | J4: =Tablo2345[[#This Row],[HESAPLANAN GELİR VERGİSİ]]-Tablo2345[[#This Row],[ASGARİ ÜCRETİN VERGİSİ]] -> 865.15125 | K4: =(Tablo2345[[#This Row],[SGK MATRAH]]-13414.5)*0.00759 -> 51.501945 | L4: =Tablo2345[[#This Row],[SGK MATRAH]]-Tablo2345[[#This Row],[SGK ve İşsizlik İşçi Payı]]-Tablo2345[[#This Row],[KESİLECEK GELİR VERGİSİ]]-Tablo2345[[#This Row],[DAMGA VERGİSİ]] -> 16253.3468 | M4: 3131 | N4: 404 | O4: 23735
A5: nisan | B5: 20200 | C5: 3030 | D5: =Tablo2345[[#This Row],[SGK MATRAH]]-Tablo2345[[#This Row],[SGK ve İşsizlik İşçi Payı]] -> 17170 | E5: 68680 | F5: =gelir_vergisi(Tablo2345[[#This Row],[MATRAH]],Tablo2345[[#This Row],[KÜMÜLATİF GV MATRAH]]) -> 2575.5 | G5: =11402.33+G4 -> 45609.31 | H5: 1710.34875 | I5: =Tablo2345[[#This Row],[ASGARİ ÜCRET KÜMÜLATİF MATRAH]] -> 45609.31 | J5: =Tablo2345[[#This Row],[HESAPLANAN GELİR VERGİSİ]]-Tablo2345[[#This Row],[ASGARİ ÜCRETİN VERGİSİ]] -> 865.15125 | K5: =(Tablo2345[[#This Row],[SGK MATRAH]]-13414.5)*0.00759 -> 51.501945 | L5: =Tablo2345[[#This Row],[SGK MATRAH]]-Tablo2345[[#This Row],[SGK ve İşsizlik İşçi Payı]]-Tablo2345[[#This Row],[KESİLECEK GELİR VERGİSİ]]-Tablo2345[[#This Row],[DAMGA VERGİSİ]] -> 16253.3468 | M5: 3131 | N5: 404 | O5: 23735
A6: mayıs | B6: 20200 | C6: 3030 | D6: =Tablo2345[[#This Row],[SGK MATRAH]]-Tablo2345[[#This Row],[SGK ve İşsizlik İşçi Payı]] -> 17170 | E6: 85850 | F6: =gelir_vergisi(Tablo2345[[#This Row],[MATRAH]],Tablo2345[[#This Row],[KÜMÜLATİF GV MATRAH]]) -> 2575.5 | G6: =11402.33+G5 -> 57011.64 | H6: 1710.34875 | I6: =Tablo2345[[#This Row],[ASGARİ ÜCRET KÜMÜLATİF MATRAH]] -> 57011.64 | J6: =Tablo2345[[#This Row],[HESAPLANAN GELİR VERGİSİ]]-Tablo2345[[#This Row],[ASGARİ ÜCRETİN VERGİSİ]] -> 865.15125 | K6: =(Tablo2345[[#This Row],[SGK MATRAH]]-13414.5)*0.00759 -> 51.501945 | L6: =Tablo2345[[#This Row],[SGK MATRAH]]-Tablo2345[[#This Row],[SGK ve İşsizlik İşçi Payı]]-Tablo2345[[#This Row],[KESİLECEK GELİR VERGİSİ]]-Tablo2345[[#This Row],[DAMGA VERGİSİ]] -> 16253.3468 | M6: 3131 | N6: 404 | O6: 23735
A7: haziran | B7: 20200 | C7: 3030 | D7: =Tablo2345[[#This Row],[SGK MATRAH]]-Tablo2345[[#This Row],[SGK ve İşsizlik İşçi Payı]] -> 17170 | E7: 103020 | F7: =gelir_vergisi(Tablo2345[[#This Row],[MATRAH]],Tablo2345[[#This Row],[KÜMÜLATİF GV MATRAH]]) -> 2575.5 | G7: 68413.97 | H7: 1710.34875 | I7: =Tablo2345[[#This Row],[ASGARİ ÜCRET KÜMÜLATİF MATRAH]] -> 68413.97 | J7: =Tablo2345[[#This Row],[HESAPLANAN GELİR VERGİSİ]]-Tablo2345[[#This Row],[ASGARİ ÜCRETİN VERGİSİ]] -> 865.15125 | K7: =(Tablo2345[[#This Row],[SGK MATRAH]]-13414.5)*0.00759 -> 51.501945 | L7: =Tablo2345[[#This Row],[SGK MATRAH]]-Tablo2345[[#This Row],[SGK ve İşsizlik İşçi Payı]]-Tablo2345[[#This Row],[KESİLECEK GELİR VERGİSİ]]-Tablo2345[[#This Row],[DAMGA VERGİSİ]] -> 16253.3468 | M7: 3131 | N7: 404 | O7: 23735
A8: temmuz | B8: 20200 | C8: 3030 | D8: =Tablo2345[[#This Row],[SGK MATRAH]]-Tablo2345[[#This Row],[SGK ve İşsizlik İşçi Payı]] -> 17170 | E8: 120190 | F8: =gelir_vergisi(Tablo2345[[#This Row],[MATRAH]],Tablo2345[[#This Row],[KÜMÜLATİF GV MATRAH]]) -> 3085 | G8: 79816.3 | H8: 2201.1625 | I8: =Tablo2345[[#This Row],[ASGARİ ÜCRET KÜMÜLATİF MATRAH]] -> 79816.3 | J8: =Tablo2345[[#This Row],[HESAPLANAN GELİR VERGİSİ]]-Tablo2345[[#This Row],[ASGARİ ÜCRETİN VERGİSİ]] -> 883.8375 | K8: =(Tablo2345[[#This Row],[SGK MATRAH]]-13414.5)*0.00759 -> 51.501945 | L8: =Tablo2345[[#This Row],[SGK MATRAH]]-Tablo2345[[#This Row],[SGK ve İşsizlik İşçi Payı]]-Tablo2345[[#This Row],[KESİLECEK GELİR VERGİSİ]]-Tablo2345[[#This Row],[DAMGA VERGİSİ]] -> 16234.66056 | M8: 3131 | N8: 404 | O8: 23735
A9: ağustos | B9: 20200 | C9: 3030 | D9: =Tablo2345[[#This Row],[SGK MATRAH]]-Tablo2345[[#This Row],[SGK ve İşsizlik İşçi Payı]] -> 17170 | E9: 137360 | F9: =gelir_vergisi(Tablo2345[[#This Row],[MATRAH]],Tablo2345[[#This Row],[KÜMÜLATİF GV MATRAH]]) -> 3434 | G9: 91218.63 | H9: 2280.465 | I9: =Tablo2345[[#This Row],[ASGARİ ÜCRET KÜMÜLATİF MATRAH]] -> 91218.63 | J9: =Tablo2345[[#This Row],[HESAPLANAN GELİR VERGİSİ]]-Tablo2345[[#This Row],[ASGARİ ÜCRETİN VERGİSİ]] -> 1153.535 | K9: =(Tablo2345[[#This Row],[SGK MATRAH]]-13414.5)*0.00759 -> 51.501945 | L9: =Tablo2345[[#This Row],[SGK MATRAH]]-Tablo2345[[#This Row],[SGK ve İşsizlik İşçi Payı]]-Tablo2345[[#This Row],[KESİLECEK GELİR VERGİSİ]]-Tablo2345[[#This Row],[DAMGA VERGİSİ]] -> 15964.96306 | M9: 3131 | N9: 404 | O9: 23735
A10: eylül | B10: 20200 | C10: 3030 | D10: =Tablo2345[[#This Row],[SGK MATRAH]]-Tablo2345[[#This Row],[SGK ve İşsizlik İşçi Payı]] -> 17170 | E10: 154530 | F10: =gelir_vergisi(Tablo2345[[#This Row],[MATRAH]],Tablo2345[[#This Row],[KÜMÜLATİF GV MATRAH]]) -> 3434 | G10: 102620.96 | H10: 2280.47 | I10: =Tablo2345[[#This Row],[ASGARİ ÜCRET KÜMÜLATİF MATRAH]] -> 102620.96 | J10: =Tablo2345[[#This Row],[HESAPLANAN GELİR VERGİSİ]]-Tablo2345[[#This Row],[ASGARİ ÜCRETİN VERGİSİ]] -> 1153.53 | K10: =(Tablo2345[[#This Row],[SGK MATRAH]]-13414.5)*0.00759 -> 51.501945 | L10: =Tablo2345[[#This Row],[SGK MATRAH]]-Tablo2345[[#This Row],[SGK ve İşsizlik İşçi Payı]]-Tablo2345[[#This Row],[KESİLECEK GELİR VERGİSİ]]-Tablo2345[[#This Row],[DAMGA VERGİSİ]] -> 15964.96805 | M10: 3131 | N10: 404 | O10: 23735
A11: ekim | B11: 20200 | C11: 3030 | D11: =Tablo2345[[#This Row],[SGK MATRAH]]-Tablo2345[[#This Row],[SGK ve İşsizlik İşçi Payı]] -> 17170 | E11: 171700 | F11: =gelir_vergisi(Tablo2345[[#This Row],[MATRAH]],Tablo2345[[#This Row],[KÜMÜLATİF GV MATRAH]]) -> 3434 | G11: 114023.29 | H11: 2280.47 | I11: =Tablo2345[[#This Row],[ASGARİ ÜCRET KÜMÜLATİF MATRAH]] -> 114023.29 | J11: =Tablo2345[[#This Row],[HESAPLANAN GELİR VERGİSİ]]-Tablo2345[[#This Row],[ASGARİ ÜCRETİN VERGİSİ]] -> 1153.53 | K11: =(Tablo2345[[#This Row],[SGK MATRAH]]-13414.5)*0.00759 -> 51.501945 | L11: =Tablo2345[[#This Row],[SGK MATRAH]]-Tablo2345[[#This Row],[SGK ve İşsizlik İşçi Payı]]-Tablo2345[[#This Row],[KESİLECEK GELİR VERGİSİ]]-Tablo2345[[#This Row],[DAMGA VERGİSİ]] -> 15964.96805 | M11: 3131 | N11: 404 | O11: 23735
A12: kasım | B12: 20200 | C12: 3030 | D12: =Tablo2345[[#This Row],[SGK MATRAH]]-Tablo2345[[#This Row],[SGK ve İşsizlik İşçi Payı]] -> 17170 | E12: 188870 | F12: =gelir_vergisi(Tablo2345[[#This Row],[MATRAH]],Tablo2345[[#This Row],[KÜMÜLATİF GV MATRAH]]) -> 3434 | G12: 125425.62 | H12: 2280.47 | I12: =Tablo2345[[#This Row],[ASGARİ ÜCRET KÜMÜLATİF MATRAH]] -> 125425.62 | J12: =Tablo2345[[#This Row],[HESAPLANAN GELİR VERGİSİ]]-Tablo2345[[#This Row],[ASGARİ ÜCRETİN VERGİSİ]] -> 1153.53 | K12: =(Tablo2345[[#This Row],[SGK MATRAH]]-13414.5)*0.00759 -> 51.501945 | L12: =Tablo2345[[#This Row],[SGK MATRAH]]-Tablo2345[[#This Row],[SGK ve İşsizlik İşçi Payı]]-Tablo2345[[#This Row],[KESİLECEK GELİR VERGİSİ]]-Tablo2345[[#This Row],[DAMGA VERGİSİ]] -> 15964.96805 | M12: 3131 | N12: 404 | O12: 23735
A13: aralık | B13: 20200 | C13: 3030 | D13: =Tablo2345[[#This Row],[SGK MATRAH]]-Tablo2345[[#This Row],[SGK ve İşsizlik İşçi Payı]] -> 17170 | E13: 206040 | F13: =gelir_vergisi(Tablo2345[[#This Row],[MATRAH]],Tablo2345[[#This Row],[KÜMÜLATİF GV MATRAH]]) -> 3434 | G13: 136827.95 | H13: 2280.47 | I13: =Tablo2345[[#This Row],[ASGARİ ÜCRET KÜMÜLATİF MATRAH]] -> 136827.95 | J13: =Tablo2345[[#This Row],[HESAPLANAN GELİR VERGİSİ]]-Tablo2345[[#This Row],[ASGARİ ÜCRETİN VERGİSİ]] -> 1153.53 | K13: =(Tablo2345[[#This Row],[SGK MATRAH]]-13414.5)*0.00759 -> 51.501945 | L13: =Tablo2345[[#This Row],[SGK MATRAH]]-Tablo2345[[#This Row],[SGK ve İşsizlik İşçi Payı]]-Tablo2345[[#This Row],[KESİLECEK GELİR VERGİSİ]]-Tablo2345[[#This Row],[DAMGA VERGİSİ]] -> 15964.96805 | M13: 3131 | N13: 404 | O13: 23735 | Q13: www.vizyonkurumsal.com.tr
A14: toplam | B14: =SUBTOTAL(109,Tablo2345[SGK MATRAH]) -> 242400 | C14: =SUBTOTAL(109,Tablo2345[SGK ve İşsizlik İşçi Payı]) -> 36360 | D14: =SUBTOTAL(109,Tablo2345[MATRAH]) -> 206040 | E14: =SUBTOTAL(109,Tablo2345[KÜMÜLATİF GV MATRAH]) -> 1339260 | F14: =SUBTOTAL(109,Tablo2345[HESAPLANAN GELİR VERGİSİ]) -> 35708 | G14: =SUBTOTAL(109,Tablo2345[ASGARİ ÜCRET KÜMÜLATİF MATRAH]) -> 889381.62 | H14: =SUBTOTAL(109,Tablo2345[ASGARİ ÜCRETİN VERGİSİ]) -> 23865.6 | I14: =SUBTOTAL(109,Tablo2345[İSTİSNA MATRAH]) -> 889381.62 | J14: =SUBTOTAL(109,Tablo2345[KESİLECEK GELİR VERGİSİ]) -> 11842.4 | K14: =SUBTOTAL(109,Tablo2345[DAMGA VERGİSİ]) -> 618.02334 | L14: =SUBTOTAL(109,Tablo2345[NET ÜCRET]) -> 193579.5767 | M14: =SUBTOTAL(109,Tablo2345[SGK İŞVEREN]) -> 37572 | N14: =SUBTOTAL(109,Tablo2345[İŞVEREN İŞSİZLİK]) -> 4848 | O14: =SUBTOTAL(109,Tablo2345[İŞVEREN TOPLAM MALİYET]) -> 284820
O15: =AVERAGE(Tablo2345[İŞVEREN TOPLAM MALİYET]) -> 23735
A16: net ücret aylık ort. maliyet | B16: =Tablo2345[[#Totals],[SGK MATRAH]]/12 -> 20200 | C16: =Tablo2345[[#Totals],[SGK ve İşsizlik İşçi Payı]]/12 -> 3030 | D16: =Tablo2345[[#Totals],[MATRAH]]/12 -> 17170 | E16: =Tablo2345[[#Totals],[KÜMÜLATİF GV MATRAH]]/12 -> 111605 | F16: =Tablo2345[[#Totals],[HESAPLANAN GELİR VERGİSİ]]/12 -> 2975.666667 | G16: =Tablo2345[[#Totals],[ASGARİ ÜCRET KÜMÜLATİF MATRAH]]/12 -> 74115.135 | H16: =Tablo2345[[#Totals],[ASGARİ ÜCRETİN VERGİSİ]]/12 -> 1988.8 | I16: =Tablo2345[[#Totals],[İSTİSNA MATRAH]]/12 -> 74115.135 | J16: =Tablo2345[[#Totals],[KESİLECEK GELİR VERGİSİ]]/12 -> 986.8666667 | K16: =Tablo2345[[#Totals],[DAMGA VERGİSİ]]/12 -> 51.501945 | L16: =Tablo2345[[#Totals],[NET ÜCRET]]/12 -> 16131.63139 | M16: =Tablo2345[[#Totals],[SGK İŞVEREN]]/12 -> 3131 | N16: =Tablo2345[[#Totals],[İŞVEREN İŞSİZLİK]]/12 -> 404 | O16: =Tablo2345[[#Totals],[İŞVEREN TOPLAM MALİYET]]/12 -> 23735
G18: =B2*7.5 -> 151500

Sheet asgari ücret parametre (hidden)
A1: dönem | B1: brüt asgari ücret | C1: sgk işçi payı | D1: işsizlik işçi payı | E1: vergi matarhı | F1: kümülatif gv matrahı | G1: hesaplanan gv | H1: damga vergisi | I1: asgari ücret gv istisnası | J1: asgari ücret damga istisnası | K1: net ücret | L1: sgk işveren payı | M1: işsizlik işveren payı | N1: işveren toplam maliyet
A2: 2023-01-01 | B2: 10008 | C2: =B2*0.14 -> 1401.12 | D2: =B2*0.01 -> 100.08 | E2: =B2-C2-D2 -> 8506.8 | F2: =E2 -> 8506.8 | G2: =gelir_vergisi(Tablo2[[#This Row],[vergi matarhı]],Tablo2[[#This Row],[kümülatif gv matrahı]]) -> 1276.02 | H2: =B2*0.00759 -> 75.96072 | I2: 1276.02 | J2: 75.9 | K2: =Tablo2[[#This Row],[vergi matarhı]] -> 8506.8 | L2: =B2*0.155 -> 1551.24 | M2: =B2*0.02 -> 200.16 | N2: =B2+L2+M2 -> 11759.4
A3: 2023-02-01 | B3: =B2 -> 10008 | C3: =B3*0.14 -> 1401.12 | D3: =B3*0.01 -> 100.08 | E3: =B3-C3-D3 -> 8506.8 | F3: =E3+F2 -> 17013.6 | G3: =gelir_vergisi(Tablo2[[#This Row],[vergi matarhı]],Tablo2[[#This Row],[kümülatif gv matrahı]]) -> 1276.02 | H3: =B3*0.00759 -> 75.96072 | I3: 1276.02 | J3: 75.9 | K3: =Tablo2[[#This Row],[vergi matarhı]] -> 8506.8 | L3: =B3*0.155 -> 1551.24 | M3: =B3*0.02 -> 200.16 | N3: =B3+L3+M3 -> 11759.4
A4: 2023-03-01 | B4: =B3 -> 10008 | C4: 1401.12 | D4: 100.08 | E4: 8506.8 | F4: =E4+F3 -> 25520.4 | G4: =gelir_vergisi(Tablo2[[#This Row],[vergi matarhı]],Tablo2[[#This Row],[kümülatif gv matrahı]]) -> 1276.02 | H4: 75.96072 | I4: 1276.02 | J4: 75.9 | K4: =Tablo2[[#This Row],[vergi matarhı]] -> 8506.8 | L4: 1551.24 | M4: 200.16 | N4: 11759.4
A5: 2023-04-01 | B5: 10008 | C5: 1401.12 | D5: 100.08 | E5: 8506.8 | F5: 34027.2 | G5: =gelir_vergisi(Tablo2[[#This Row],[vergi matarhı]],Tablo2[[#This Row],[kümülatif gv matrahı]]) -> 1276.02 | H5: 75.96072 | I5: 1377.38 | J5: 75.9 | K5: =Tablo2[[#This Row],[vergi matarhı]] -> 8506.8 | L5: 1551.24 | M5: 200.16 | N5: 11759.4
A6: 2023-05-01 | B6: 10008 | C6: 1401.12 | D6: 100.08 | E6: 8506.8 | F6: 42534 | G6: =gelir_vergisi(Tablo2[[#This Row],[vergi matarhı]],Tablo2[[#This Row],[kümülatif gv matrahı]]) -> 1276.02 | H6: 75.96072 | I6: 1701.36 | J6: 75.9 | K6: =Tablo2[[#This Row],[vergi matarhı]] -> 8506.8 | L6: 1551.24 | M6: 200.16 | N6: 11759.4
A7: 2023-06-01 | B7: 10008 | C7: 1401.12 | D7: 100.08 | E7: 8506.8 | F7: 51040.8 | G7: =gelir_vergisi(Tablo2[[#This Row],[vergi matarhı]],Tablo2[[#This Row],[kümülatif gv matrahı]]) -> 1276.02 | H7: 75.96072 | I7: 1701.36 | J7: 75.9 | K7: =Tablo2[[#This Row],[vergi matarhı]] -> 8506.8 | L7: 1551.24 | M7: 200.16 | N7: 11759.4
A8: 2023-07-01 | B8: 10008 | C8: 1401.12 | D8: 100.08 | E8: 8506.8 | F8: 59547.6 | G8: =gelir_vergisi(Tablo2[[#This Row],[vergi matarhı]],Tablo2[[#This Row],[kümülatif gv matrahı]]) -> 1276.02 | H8: 75.96072 | I8: 1701.36 | J8: 75.9 | K8: =Tablo2[[#This Row],[vergi matarhı]] -> 8506.8 | L8: 1551.24 | M8: 200.16 | N8: 11759.4
A9: 2023-08-01 | B9: 10008 | C9: 1401.12 | D9: 100.08 | E9: 8506.8 | F9: 68054.4 | G9: =gelir_vergisi(Tablo2[[#This Row],[vergi matarhı]],Tablo2[[#This Row],[kümülatif gv matrahı]]) -> 1276.02 | H9: 75.96072 | I9: 1701.36 | J9: 75.9 | K9: =Tablo2[[#This Row],[vergi matarhı]] -> 8506.8 | L9: 1551.24 | M9: 200.16 | N9: 11759.4
A10: 2023-09-01 | B10: 10008 | C10: 1401.12 | D10: 100.08 | E10: 8506.8 | F10: 76561.2 | G10: =gelir_vergisi(Tablo2[[#This Row],[vergi matarhı]],Tablo2[[#This Row],[kümülatif gv matrahı]]) -> 1276.02 | H10: 75.96072 | I10: 2160.644 | J10: 75.9 | K10: =Tablo2[[#This Row],[vergi matarhı]] -> 8506.8 | L10: 1551.24 | M10: 200.16 | N10: 11759.4
A11: 2023-10-01 | B11: 10008 | C11: 1401.12 | D11: 100.08 | E11: 8506.8 | F11: 85068 | G11: =gelir_vergisi(Tablo2[[#This Row],[vergi matarhı]],Tablo2[[#This Row],[kümülatif gv matrahı]]) -> 1276.02 | H11: 75.96072 | I11: 2296.836 | J11: 75.9 | K11: =Tablo2[[#This Row],[vergi matarhı]] -> 8506.8 | L11: 1551.24 | M11: 200.16 | N11: 11759.4
A12: 2023-11-01 | B12: 10008 | C12: 1401.12 | D12: 100.08 | E12: 8506.8 | F12: 93574.8 | G12: =gelir_vergisi(Tablo2[[#This Row],[vergi matarhı]],Tablo2[[#This Row],[kümülatif gv matrahı]]) -> 1276.02 | H12: 75.96072 | I12: 2296.836 | J12: 75.9 | K12: =Tablo2[[#This Row],[vergi matarhı]] -> 8506.8 | L12: 1551.24 | M12: 200.16 | N12: 11759.4
A13: 2023-12-01 | B13: 10008 | C13: 1401.12 | D13: 100.08 | E13: 8506.8 | F13: 102081.6 | G13: =gelir_vergisi(Tablo2[[#This Row],[vergi matarhı]],Tablo2[[#This Row],[kümülatif gv matrahı]]) -> 1276.02 | H13: 75.96072 | I13: 2296.836 | J13: 75.9 | K13: =Tablo2[[#This Row],[vergi matarhı]] -> 8506.8 | L13: 1551.24 | M13: 200.16 | N13: 11759.4
A14: toplam | B14: =SUM(B2:B13) -> 120096 | C14: =SUBTOTAL(109,C2:C13) -> 16813.44 | D14: 1200.96 | E14: 102081.6 | F14: 663530.4 | G14: 15312.24 | H14: 911.52864 | I14: =SUBTOTAL(109,I2:I13) -> 21062.032 | J14: 910.8 | K14: 102081.6 | L14: 18614.88 | M14: 2401.92 | N14: 141112.8
A15: aylık ort maliyet | B15: =B14/12 -> 10008 | C15: =C14/12 -> 1401.12 | D15: 100.08 | E15: 8506.8 | F15: 55294.2 | G15: 1276.02 | H15: 75.96072 | I15: 1755.169333 | J15: 75.9 | K15: 8506.8 | L15: 1551.24 | M15: 200.16 | N15: 11759.4
H17: =F10 -> 76561.2 | I17: 70000 | J17: =(H17-I17)*0.2 -> 1312.24 | K17: =(E10-(H17-I17))*0.15 -> 291.84

Sheet dilimler (hidden)
K6: 0-32.000 | L6: 0.15
K7: 32.000-70.000 | L7: 0.2
